[Event "RUS-ch Blitz Women 2018"]
[Site "Sochi"]
[Date "2018.10.07"]
[Round "16"]
[White "Maletina, Tatiana"]
[Black "Belenkaya, Dina"]
[Result "1-0"]
[ECO "D20"]
[WhiteElo "2270"]
[BlackElo "2329"]
[Annotator "NA"]
[PlyCount "133"]
[EventDate "2018.10.07"]
[EventType "swiss"]
[EventCountry "RUS"]
[SourceTitle "playchess.com"]
[Source "ChessBase"]
[SourceQuality "1"]
[TimeControl "180+2"]

1. d4 {[%emt 0:00:00]} d5 {[%emt 0:00:00]} 2. c4 {[%emt 0:00:01]} dxc4 {[%emt 0:00:00]} 3. e4 {[%emt 0:00:01]} Nf6 {[%emt 0:00:02]} 4. e5 {[%emt 0:00:02]} Nd5 {[%emt 0:00:01]} 5. Bxc4 {[%emt 0:00:01]} Bf5 {[%emt 0:00:08]} 6. Ne2 {[%emt 0:00:24]} e6 {[%emt 0:00:01]} 7. O-O {[%emt 0:00:07]} Nb6 {[%emt 0:00:04]} 8. Bd3 {[%emt 0:00:13]} Bxd3 {[%emt 0:00:03]} 9. Qxd3 {[%emt 0:00:01]} Nc6 {[%emt 0:00:01]} 10. Rd1 {[%emt 0:00:05]} Be7 {[%emt 0:00:03]} 11. Nbc3 {[%emt 0:00:01]} Qd7 {[%emt 0:00:03]} 12. Be3 {[%emt 0:00:11]} O-O-O {[%emt 0:00:03]} 13. Qb5 {[%emt 0:00:23]} Nb4 {[%emt 0:00:35]} 14. Qxd7+ {[%emt 0:00:17]} Rxd7 {[%emt 0:00:02]} 15. Rac1 {[%emt 0:00:02]} N4d5 {[%emt 0:00:05]} 16. Ne4 {[%emt 0:00:13]} c6 {[%emt 0:00:05]} 17. b3 {[%emt 0:00:05]} Nxe3 {[%emt 0:00:20]} 18. fxe3 {[%emt 0:00:01]} Nd5 {[%emt 0:00:03]} 19. Kf2 {[%emt 0:00:07]} Kc7 {[%emt 0:00:02]} 20. N2c3 {[%emt 0:00:05]} Ba3 {[%emt 0:00:11]} 21. Nb5+ {[%emt 0:00:04]} Kb8 {[%emt 0:00:07]} 22. Nxa3 {[%emt 0:00:02]} Rf8 {[%emt 0:00:05]} 23. Nc4 {[%emt 0:00:03]} Kc7 {[%emt 0:00:05]} 24. Ke2 {[%emt 0:00:04]} h6 {[%emt 0:00:04]} 25. a3 {[%emt 0:00:03]} b6 {[%emt 0:00:03]} 26. b4 {[%emt 0:00:02]} Kb8 {[%emt 0:00:07]} 27. Nb2 {[%emt 0:00:05]} f5 {[%emt 0:00:03]} 28. exf6 {[%emt 0:00:01]} gxf6 {[%emt 0:00:01]} 29. Rxc6 {[%emt 0:00:03]} f5 {[%emt 0:00:00]} 30. Nf2 {[%emt 0:00:14]} Rg8 {[%emt 0:00:02]} 31. g3 {[%emt 0:00:05]} h5 {[%emt 0:00:02]} 32. Nbd3 {[%emt 0:00:18]} h4 {[%emt 0:00:01]} 33. gxh4 {[%emt 0:00:05]} Rh8 {[%emt 0:00:03]} 34. Ne5 {[%emt 0:00:05]} Rg7 {[%emt 0:00:02]} 35. Rdc1 {[%emt 0:00:11]} Rxh4 {[%emt 0:00:03]} 36. Rxe6 {[%emt 0:00:09]} Rxh2 {[%emt 0:00:02]} 37. Nf3 {[%emt 0:00:05]} Rhg2 {[%emt 0:00:04]} 38. Re5 {[%emt 0:00:04]} Nf6 {[%emt 0:00:02]} 39. Nh4 {[%emt 0:00:08]} Rh2 {[%emt 0:00:04]} 40. Nxf5 {[%emt 0:00:01]} Rgg2 {[%emt 0:00:02]} 41. Rf1 {[%emt 0:00:06]} Ng4 {[%emt 0:00:03]} 42. Re8+ {[%emt 0:00:02]} Kc7 {[%emt 0:00:01]} 43. Re7+ {[%emt 0:00:01]} Kd8 {[%emt 0:00:01]} 44. Rxa7 {[%emt 0:00:02]} Nxf2 {[%emt 0:00:02]} 45. Kf3 {[%emt 0:00:04]} Nd3 {[%emt 0:00:05]} 46. Ke4 {[%emt 0:00:02]} Nf2+ {[%emt 0:00:04]} 47. Kd5 {[%emt 0:00:01]} Rh5 {[%emt 0:00:03]} 48. e4 {[%emt 0:00:00]} Ng4 {[%emt 0:00:08]} 49. e5 {[%emt 0:00:03]} Re2 {[%emt 0:00:08]} 50. Nd6 {[%emt 0:00:02]} Ne3+ {[%emt 0:00:03]} 51. Kc6 {[%emt 0:00:03]} Rc2+ {[%emt 0:00:02]} 52. Kxb6 {[%emt 0:00:01]} Nd5+ {[%emt 0:00:01]} 53. Ka5 {[%emt 0:00:02]} Nc7 {[%emt 0:00:04]} 54. b5 {[%emt 0:00:03]} Rc3 {[%emt 0:00:03]} 55. a4 {[%emt 0:00:01]} Rh7 {[%emt 0:00:02]} 56. Rf8+ {[%emt 0:00:02]} Kd7 {[%emt 0:00:01]} 57. Rf7+ {[%emt 0:00:01]} Rxf7 {[%emt 0:00:01]} 58. Nxf7 {[%emt 0:00:01]} Ke6 {[%emt 0:00:00]} 59. Nd8+ {[%emt 0:00:02]} Kd7 {[%emt 0:00:01]} 60. Nc6 {[%emt 0:00:02]} Ke6 {[%emt 0:00:02]} 61. Rxc7 {[%emt 0:00:02]} Kd5 {[%emt 0:00:02]} 62. Rd7+ {[%emt 0:00:01]} Ke6 {[%emt 0:00:01]} 63. Rd6+ {[%emt 0:00:01]} Kf7 {[%emt 0:00:01]} 64. e6+ {[%emt 0:00:01]} Kf6 {[%emt 0:00:01]} 65. e7+ {[%emt 0:00:01]} Kf7 {[%emt 0:00:01]} 66. Rd8 {[%emt 0:00:00]} Kg7 {[%emt 0:00:02]} 67. e8=Q {[%emt 0:00:01]} 1-0

[Event "RUS-ch Blitz Women 2018"]
[Site "Sochi"]
[Date "2018.10.07"]
[Round "16"]
[White "Nebolsina, Vera"]
[Black "Maltsevskaya, Aleksandra"]
[Result "0-1"]
[ECO "B24"]
[WhiteElo "2220"]
[BlackElo "2290"]
[Annotator "NA"]
[PlyCount "94"]
[EventDate "2018.10.07"]
[EventType "swiss"]
[EventCountry "RUS"]
[SourceTitle "playchess.com"]
[Source "ChessBase"]
[SourceQuality "1"]
[TimeControl "180+2"]

1. e4 {[%emt 0:00:01]} c5 {[%emt 0:00:00]} 2. Nc3 {[%emt 0:00:02]} Nc6 {[%emt 0:00:02]} 3. Bb5 {[%emt 0:00:02]} Nd4 {[%emt 0:00:05]} 4. Nf3 {[%emt 0:00:04]} g6 {[%emt 0:00:08]} 5. Bc4 {[%emt 0:00:03]} Bg7 {[%emt 0:00:03]} 6. Nxd4 {[%emt 0:00:04]} cxd4 {[%emt 0:00:01]} 7. Qf3 {[%emt 0:00:03]} e6 {[%emt 0:00:04]} 8. Nb5 {[%emt 0:00:03]} d6 {[%emt 0:00:10]} 9. Qa3 {[%emt 0:00:02]} Bf8 {[%emt 0:00:22]} 10. Nxd4 {[%emt 0:00:26]} Nf6 {[%emt 0:00:10]} 11. Bb5+ {[%emt 0:00:19]} Bd7 {[%emt 0:00:03]} 12. Bxd7+ {[%emt 0:00:02]} Qxd7 {[%emt 0:00:01]} 13. Qf3 {[%emt 0:00:09]} Bg7 {[%emt 0:00:02]} 14. O-O {[%emt 0:00:11]} O-O {[%emt 0:00:03]} 15. Ne2 {[%emt 0:00:04]} Qc6 {[%emt 0:00:02]} 16. Nc3 {[%emt 0:00:02]} b5 {[%emt 0:00:09]} 17. a3 {[%emt 0:00:05]} a5 {[%emt 0:00:05]} 18. e5 {[%emt 0:00:21]} Qxf3 {[%emt 0:00:07]} 19. gxf3 {[%emt 0:00:01]} dxe5 {[%emt 0:00:01]} 20. Nxb5 {[%emt 0:00:01]} Rac8 {[%emt 0:00:10]} 21. c3 {[%emt 0:00:20]} Nd5 {[%emt 0:00:10]} 22. b4 {[%emt 0:00:08]} axb4 {[%emt 0:00:08]} 23. axb4 {[%emt 0:00:02]} f5 {[%emt 0:00:02]} 24. Re1 {[%emt 0:00:09]} e4 {[%emt 0:00:05]} 25. fxe4 {[%emt 0:00:04]} Nxb4 {[%emt 0:00:02]} 26. Ra7 {[%emt 0:00:09]} Nd3 {[%emt 0:00:01]} 27. Rf1 {[%emt 0:00:02]} fxe4 {[%emt 0:00:08]} 28. Nd6 {[%emt 0:00:01]} Rc5 {[%emt 0:00:09]} 29. Nxe4 {[%emt 0:00:03]} Re5 {[%emt 0:00:00]} 30. Ng3 {[%emt 0:00:04]} h5 {[%emt 0:00:03]} 31. Ba3 {[%emt 0:00:08]} Rd8 {[%emt 0:00:02]} 32. Be7 {[%emt 0:00:06]} Re8 {[%emt 0:00:03]} 33. h4 {[%emt 0:00:02]} Rb5 {[%emt 0:00:19]} 34. Bg5 {[%emt 0:00:05]} Ne5 {[%emt 0:00:03]} 35. f4 {[%emt 0:00:02]} Nc4 {[%emt 0:00:05]} 36. d4 {[%emt 0:00:06]} Rb3 {[%emt 0:00:04]} 37. Ne4 {[%emt 0:00:15]} Ne3 {[%emt 0:00:12]} 38. Rf3 {[%emt 0:00:07]} Nd5 {[%emt 0:00:02]} 39. Kg2 {[%emt 0:00:04]} Rb2+ {[%emt 0:00:03]} 40. Kg3 {[%emt 0:00:02]} Rc2 {[%emt 0:00:05]} 41. Ra6 {[%emt 0:00:05]} Rb8 {[%emt 0:00:10]} 42. Rxe6 {[%emt 0:00:06]} Rbb2 {[%emt 0:00:01]} 43. Rf2 {[%emt 0:00:01]} Rxf2 {[%emt 0:00:08]} 44. Nxf2 {[%emt 0:00:02]} Nxc3 {[%emt 0:00:01]} 45. Rd6 {[%emt 0:00:06]} Ne2+ {[%emt 0:00:02]} 46. Kf3 {[%emt 0:00:04]} Nxd4+ {[%emt 0:00:01]} 47. Kg3 {[%emt 0:00:03]} Nf5+ {[%emt 0:00:01]} 0-1

[Event "RUS-ch Blitz Women 2018"]
[Site "Sochi"]
[Date "2018.10.07"]
[Round "16"]
[White "Goltseva, Ekaterina"]
[Black "Vasilevich, Irina"]
[Result "1-0"]
[ECO "E00"]
[WhiteElo "2169"]
[BlackElo "2258"]
[Annotator "NA"]
[PlyCount "91"]
[EventDate "2018.10.07"]
[EventType "swiss"]
[EventCountry "RUS"]
[SourceTitle "playchess.com"]
[Source "ChessBase"]
[SourceQuality "1"]
[TimeControl "180+2"]

1. d4 {[%emt 0:00:00]} e6 {[%emt 0:00:00]} 2. c4 {[%emt 0:00:00]} Bb4+ {[%emt 0:00:00]} 3. Nd2 {[%emt 0:00:03]} f5 {[%emt 0:00:02]} 4. g3 {[%emt 0:00:10]} Nf6 {[%emt 0:00:01]} 5. Bg2 {[%emt 0:00:01]} O-O {[%emt 0:00:02]} 6. Ngf3 {[%emt 0:00:02]} a5 {[%emt 0:00:16]} 7. O-O {[%emt 0:00:04]} Be7 {[%emt 0:00:07]} 8. Qc2 {[%emt 0:00:13]} Nc6 {[%emt 0:00:13]} 9. b3 {[%emt 0:00:30]} d6 {[%emt 0:00:17]} 10. Bb2 {[%emt 0:00:02]} a4 {[%emt 0:00:13]} 11. e4 {[%emt 0:00:33]} fxe4 {[%emt 0:00:24]} 12. Nxe4 {[%emt 0:00:02]} Nxe4 {[%emt 0:00:02]} 13. Qxe4 {[%emt 0:00:02]} Bf6 {[%emt 0:00:01]} 14. Qe2 {[%emt 0:00:15]} Qe8 {[%emt 0:00:51]} 15. Rfe1 {[%emt 0:00:14]} Bd7 {[%emt 0:00:16]} 16. Qd2 {[%emt 0:00:15]} Qf7 {[%emt 0:00:20]} 17. b4 {[%emt 0:00:11]} a3 {[%emt 0:00:05]} 18. Bc3 {[%emt 0:00:01]} Ne7 {[%emt 0:00:07]} 19. Rad1 {[%emt 0:00:10]} Bc6 {[%emt 0:00:02]} 20. Qe2 {[%emt 0:00:15]} Bd7 {[%emt 0:00:09]} 21. Nd2 {[%emt 0:00:04]} Rae8 {[%emt 0:00:02]} 22. Ne4 {[%emt 0:00:08]} Bc6 {[%emt 0:00:02]} 23. b5 {[%emt 0:00:12]} Bxe4 {[%emt 0:00:03]} 24. Bxe4 {[%emt 0:00:02]} d5 {[%emt 0:00:03]} 25. Bd3 {[%emt 0:00:06]} dxc4 {[%emt 0:00:03]} 26. Bxc4 {[%emt 0:00:01]} Nd5 {[%emt 0:00:00]} 27. Ba1 {[%emt 0:00:11]} c6 {[%emt 0:00:01]} 28. f4 {[%emt 0:00:03]} Qc7 {[%emt 0:00:04]} 29. Rc1 {[%emt 0:00:02]} Qb6 {[%emt 0:00:01]} 30. Qd3 {[%emt 0:00:04]} cxb5 {[%emt 0:00:02]} 31. Bxb5 {[%emt 0:00:01]} Rc8 {[%emt 0:00:02]} 32. Bd7 {[%emt 0:00:03]} Rxc1 {[%emt 0:00:03]} 33. Rxc1 {[%emt 0:00:01]} Rd8 {[%emt 0:00:02]} 34. Bb5 {[%emt 0:00:02]} Ne7 {[%emt 0:00:03]} 35. Rd1 {[%emt 0:00:04]} Nf5 {[%emt 0:00:01]} 36. Bc4 {[%emt 0:00:01]} Bxd4+ {[%emt 0:00:03]} 37. Bxd4 {[%emt 0:00:02]} Nxd4 {[%emt 0:00:01]} 38. Kf1 {[%emt 0:00:02]} Kh8 {[%emt 0:00:02]} 39. Qe4 {[%emt 0:00:03]} Nf5 {[%emt 0:00:03]} 40. Rxd8+ {[%emt 0:00:01]} Qxd8 {[%emt 0:00:01]} 41. Qxe6 {[%emt 0:00:01]} Qd1+ {[%emt 0:00:02]} 42. Kf2 {[%emt 0:00:02]} Qd2+ {[%emt 0:00:01]} 43. Kg1 {[%emt 0:00:02]} Qd4+ {[%emt 0:00:01]} 44. Kg2 {[%emt 0:00:03]} Ne3+ {[%emt 0:00:01]} 45. Kh3 {[%emt 0:00:01]} g6 {[%emt 0:00:03]} 46. Qg8# {[%emt 0:00:01]} 1-0

[Event "RUS-ch Blitz Women 2018"]
[Site "Sochi"]
[Date "2018.10.07"]
[Round "16"]
[White "Ivanova, Karina"]
[Black "Tomilova, Elena"]
[Result "0-1"]
[ECO "A06"]
[WhiteElo "2124"]
[BlackElo "2328"]
[Annotator "NA"]
[PlyCount "90"]
[EventDate "2018.10.07"]
[EventType "swiss"]
[EventCountry "RUS"]
[SourceTitle "playchess.com"]
[Source "ChessBase"]
[SourceQuality "1"]
[TimeControl "180+2"]

1. Nf3 {[%emt 0:00:00]} d5 {[%emt 0:00:00]} 2. g3 {[%emt 0:00:00]} c6 {[%emt 0:00:00]} 3. Bg2 {[%emt 0:00:02]} Bg4 {[%emt 0:00:00]} 4. O-O {[%emt 0:00:01]} Nd7 {[%emt 0:00:01]} 5. h3 {[%emt 0:00:03]} Bh5 {[%emt 0:00:02]} 6. d4 {[%emt 0:00:01]} e6 {[%emt 0:00:04]} 7. c4 {[%emt 0:00:01]} Ngf6 {[%emt 0:00:03]} 8. Nc3 {[%emt 0:00:02]} Be7 {[%emt 0:00:08]} 9. Qb3 {[%emt 0:00:04]} Qb6 {[%emt 0:00:04]} 10. Qxb6 {[%emt 0:00:03]} axb6 {[%emt 0:00:01]} 11. Nd2 {[%emt 0:00:02]} O-O {[%emt 0:00:11]} 12. e4 {[%emt 0:00:01]} dxe4 {[%emt 0:00:04]} 13. Ndxe4 {[%emt 0:00:02]} Nxe4 {[%emt 0:00:04]} 14. Nxe4 {[%emt 0:00:01]} Be2 {[%emt 0:00:03]} 15. Re1 {[%emt 0:00:10]} Bxc4 {[%emt 0:00:01]} 16. a3 {[%emt 0:00:06]} Bd5 {[%emt 0:00:07]} 17. Bf4 {[%emt 0:00:07]} h6 {[%emt 0:00:12]} 18. Bd6 {[%emt 0:00:24]} Bxd6 {[%emt 0:00:12]} 19. Nxd6 {[%emt 0:00:02]} Bxg2 {[%emt 0:00:05]} 20. Kxg2 {[%emt 0:00:03]} Rab8 {[%emt 0:00:03]} 21. b4 {[%emt 0:00:34]} Rfd8 {[%emt 0:00:08]} 22. Red1 {[%emt 0:00:08]} Nf6 {[%emt 0:00:09]} 23. Nc4 {[%emt 0:00:03]} b5 {[%emt 0:00:02]} 24. Ne3 {[%emt 0:00:19]} Ra8 {[%emt 0:00:11]} 25. Nc2 {[%emt 0:00:21]} Nd5 {[%emt 0:00:04]} 26. Rd3 {[%emt 0:00:04]} f6 {[%emt 0:00:05]} 27. f4 {[%emt 0:00:04]} Kf7 {[%emt 0:00:04]} 28. Kf3 {[%emt 0:00:03]} Nb6 {[%emt 0:00:13]} 29. Ne3 {[%emt 0:00:32]} g5 {[%emt 0:00:16]} 30. Rc1 {[%emt 0:00:08]} Ra7 {[%emt 0:00:07]} 31. f5 {[%emt 0:00:12]} e5 {[%emt 0:00:13]} 32. Nc2 {[%emt 0:00:06]} Nc4 {[%emt 0:00:08]} 33. g4 {[%emt 0:00:05]} b6 {[%emt 0:00:05]} 34. Ke4 {[%emt 0:00:03]} Rad7 {[%emt 0:00:03]} 35. Ne3 {[%emt 0:00:07]} Rxd4+ {[%emt 0:00:05]} 36. Rxd4 {[%emt 0:00:03]} Rxd4+ {[%emt 0:00:01]} 37. Kf3 {[%emt 0:00:00]} Rf4+ {[%emt 0:00:06]} 38. Ke2 {[%emt 0:00:02]} Re4 {[%emt 0:00:02]} 39. Rc3 {[%emt 0:00:02]} Ke7 {[%emt 0:00:11]} 40. Kf3 {[%emt 0:00:04]} Rxe3+ {[%emt 0:00:02]} 41. Rxe3 {[%emt 0:00:01]} Nxe3 {[%emt 0:00:01]} 42. Kxe3 {[%emt 0:00:01]} Kd6 {[%emt 0:00:03]} 43. Kd2 {[%emt 0:00:04]} Kd5 {[%emt 0:00:01]} 44. Kd3 {[%emt 0:00:01]} e4+ {[%emt 0:00:04]} 45. Ke3 {[%emt 0:00:01]} Ke5 {[%emt 0:00:01] Kd4+} 0-1

[Event "RUS-ch Blitz Women 2018"]
[Site "Sochi"]
[Date "2018.10.07"]
[Round "16"]
[White "Vifleemskaia, Svetlana"]
[Black "Gritsayeva, Oksana"]
[Result "0-1"]
[ECO "A61"]
[WhiteElo "2030"]
[BlackElo "2378"]
[Annotator "NA"]
[PlyCount "78"]
[EventDate "2018.10.07"]
[EventType "swiss"]
[EventCountry "RUS"]
[SourceTitle "playchess.com"]
[Source "ChessBase"]
[SourceQuality "1"]
[TimeControl "180+2"]

1. d4 {[%emt 0:00:00]} Nf6 {[%emt 0:00:00]} 2. c4 {[%emt 0:00:00]} e6 {[%emt 0:00:00]} 3. Nc3 {[%emt 0:00:01]} c5 {[%emt 0:00:03]} 4. d5 {[%emt 0:00:02]} exd5 5. cxd5 d6 {[%emt 0:00:02]} 6. Nf3 {[%emt 0:00:13]} g6 {[%emt 0:00:01]} 7. Nd2 {[%emt 0:00:09]} Nbd7 {[%emt 0:00:12]} 8. Nc4 {[%emt 0:00:03]} Nb6 {[%emt 0:00:04]} 9. e4 {[%emt 0:00:10]} Bg7 {[%emt 0:00:06]} 10. Bf4 {[%emt 0:00:26]} Nxc4 {[%emt 0:00:03]} 11. Bxc4 {[%emt 0:00:02]} O-O {[%emt 0:00:03]} 12. O-O {[%emt 0:00:06]} a6 {[%emt 0:00:01]} 13. a4 {[%emt 0:00:01]} Nh5 {[%emt 0:00:12]} 14. Be3 {[%emt 0:00:18]} Bd7 {[%emt 0:00:19]} 15. Be2 {[%emt 0:00:07]} Nf6 {[%emt 0:00:04]} 16. h3 {[%emt 0:00:07]} Re8 {[%emt 0:00:03]} 17. Qc2 {[%emt 0:00:08]} Rb8 {[%emt 0:00:11]} 18. a5 {[%emt 0:00:04]} Bc8 {[%emt 0:00:07]} 19. f4 {[%emt 0:00:10]} b5 {[%emt 0:00:09]} 20. axb6 {[%emt 0:00:09]} Qxb6 {[%emt 0:00:09]} 21. Na4 {[%emt 0:00:18]} Qb4 {[%emt 0:00:05]} 22. e5 {[%emt 0:00:46]} Nxd5 {[%emt 0:00:03]} 23. Bd2 {[%emt 0:00:05]} Qd4+ {[%emt 0:00:03]} 24. Kh1 {[%emt 0:00:05]} Bf5 {[%emt 0:00:12]} 25. Qc1 {[%emt 0:00:07]} dxe5 {[%emt 0:00:07]} 26. fxe5 {[%emt 0:00:07]} Rxe5 {[%emt 0:00:10]} 27. Bf3 {[%emt 0:00:02]} Rc8 {[%emt 0:00:31]} 28. Nc3 {[%emt 0:00:04]} Nb4 {[%emt 0:00:07]} 29. Bf4 {[%emt 0:00:02]} Re6 30. Rd1 Nd3 {[%emt 0:00:19]} 31. Qd2 {[%emt 0:00:03]} Qxf4 {[%emt 0:00:03]} 32. Qxf4 {[%emt 0:00:02]} Nxf4 {[%emt 0:00:01]} 33. Bb7 {[%emt 0:00:03]} Rce8 {[%emt 0:00:03]} 34. Bxa6 {[%emt 0:00:02]} h5 {[%emt 0:00:13]} 35. Bc4 {[%emt 0:00:02]} Rb6 {[%emt 0:00:04]} 36. Ra2 {[%emt 0:00:03]} Be6 {[%emt 0:00:01]} 37. Bxe6 {[%emt 0:00:02]} Nxe6 {[%emt 0:00:02]} 38. Nd5 {[%emt 0:00:01]} Rb3 {[%emt 0:00:02]} 39. Rd2 {[%emt 0:00:02]} Reb8 {[%emt 0:00:03]} 0-1

[Event "RUS-ch Blitz Women 2018"]
[Site "Sochi"]
[Date "2018.10.07"]
[Round "17"]
[White "Bivol, Alina"]
[Black "Ambartsumova, Karina"]
[Result "1/2-1/2"]
[ECO "A05"]
[WhiteElo "2403"]
[BlackElo "2379"]
[Annotator "NA"]
[PlyCount "58"]
[EventDate "2018.10.07"]
[EventType "swiss"]
[EventCountry "RUS"]
[SourceTitle "playchess.com"]
[Source "ChessBase"]
[SourceQuality "1"]
[TimeControl "180+2"]

1. Nf3 {[%emt 0:00:00]} Nf6 {[%emt 0:00:00]} 2. g3 {[%emt 0:00:00]} g6 {[%emt 0:00:00]} 3. Bg2 {[%emt 0:00:01]} Bg7 {[%emt 0:00:00]} 4. O-O {[%emt 0:00:01]} O-O {[%emt 0:00:01]} 5. d4 {[%emt 0:00:01]} d6 {[%emt 0:00:01]} 6. Nc3 {[%emt 0:00:02]} d5 {[%emt 0:00:24]} 7. Ne5 {[%emt 0:00:17]} c6 {[%emt 0:00:05]} 8. h3 {[%emt 0:00:02]} Nbd7 {[%emt 0:00:07]} 9. Nxd7 {[%emt 0:00:10]} Nxd7 {[%emt 0:00:06]} 10. e4 $11 {[%emt 0:00:03]} dxe4 {[%emt 0:00:09]} 11. Nxe4 {[%emt 0:00:01]} Nf6 {[%emt 0:00:17]} 12. Nxf6+ {[%emt 0:00:01]} Bxf6 {[%emt 0:00:01]} 13. c3 {[%emt 0:00:01]} e5 {[%emt 0:00:11]} 14. dxe5 {[%emt 0:00:03]} Qxd1 {[%emt 0:00:24]} 15. Rxd1 {[%emt 0:00:01]} Bxe5 {[%emt 0:00:01]} 16. Be3 {[%emt 0:00:06]} Be6 {[%emt 0:00:05]} 17. f4 {[%emt 0:00:04]} Bc7 {[%emt 0:00:20]} 18. Kf2 {[%emt 0:00:02]} Rfd8 {[%emt 0:00:03]} 19. a3 {[%emt 0:00:25]} Bb3 {[%emt 0:00:08]} 20. Rxd8+ {[%emt 0:00:05]} Rxd8 {[%emt 0:00:01]} 21. Bf3 {[%emt 0:00:01]} a6 {[%emt 0:00:11]} 22. Bd4 {[%emt 0:00:07]} Re8 {[%emt 0:00:06]} 23. Be3 {[%emt 0:00:20]} f6 {[%emt 0:00:09]} 24. Re1 {[%emt 0:00:04]} Kf7 {[%emt 0:00:02]} 25. Re2 {[%emt 0:00:03]} Bc4 {[%emt 0:00:12]} 26. Re1 {[%emt 0:00:18]} Bb3 {[%emt 0:00:02]} 27. Re2 {[%emt 0:00:01]} Bc4 {[%emt 0:00:00]} 28. Re1 {[%emt 0:00:02]} Bb3 {[%emt 0:00:01]} 29. Re2 {[%emt 0:00:01]} Bc4 {[%emt 0:00:00]} 1/2-1/2

[Event "RUS-ch Blitz Women 2018"]
[Site "Sochi"]
[Date "2018.10.07"]
[Round "17"]
[White "Voit, Daria"]
[Black "Maltsevskaya, Aleksandra"]
[Result "1-0"]
[ECO "E61"]
[WhiteElo "2352"]
[BlackElo "2290"]
[Annotator "NA"]
[PlyCount "101"]
[EventDate "2018.10.07"]
[EventType "swiss"]
[EventCountry "RUS"]
[SourceTitle "playchess.com"]
[Source "ChessBase"]
[SourceQuality "1"]
[TimeControl "180+2"]

1. Nf3 {[%emt 0:00:00]} Nf6 {[%emt 0:00:00]} 2. c4 {[%emt 0:00:00]} g6 {[%emt 0:00:00]} 3. d4 {[%emt 0:00:01]} d6 {[%emt 0:00:01]} 4. Nc3 {[%emt 0:00:02]} Bg7 {[%emt 0:00:01]} 5. Bg5 {[%emt 0:00:01]} O-O {[%emt 0:00:02]} 6. e3 {[%emt 0:00:01]} c6 {[%emt 0:00:06]} 7. Be2 {[%emt 0:00:03]} a6 {[%emt 0:00:00]} 8. O-O {[%emt 0:00:08]} b5 {[%emt 0:00:01]} 9. Qc2 {[%emt 0:00:01]} Nbd7 {[%emt 0:00:03]} 10. Rfd1 {[%emt 0:00:02]} Bb7 {[%emt 0:00:02]} 11. Rac1 {[%emt 0:00:02]} Rc8 {[%emt 0:00:00]} 12. b3 {[%emt 0:00:01]} h6 {[%emt 0:00:08]} 13. Bh4 {[%emt 0:00:01]} Re8 {[%emt 0:00:13]} 14. a4 {[%emt 0:00:04]} Qa5 {[%emt 0:00:14]} 15. axb5 {[%emt 0:00:12]} cxb5 {[%emt 0:00:02]} 16. Ra1 {[%emt 0:00:03]} Qb6 {[%emt 0:00:08]} 17. Qd3 {[%emt 0:00:17]} e5 {[%emt 0:00:27]} 18. dxe5 {[%emt 0:00:02]} dxe5 {[%emt 0:00:03]} 19. Qd6 {[%emt 0:00:07]} Qxd6 {[%emt 0:00:08]} 20. Rxd6 {[%emt 0:00:01]} bxc4 {[%emt 0:00:04]} 21. Bxc4 {[%emt 0:00:10]} g5 {[%emt 0:00:13]} 22. Bg3 {[%emt 0:00:01]} Rc7 {[%emt 0:00:34]} 23. h3 {[%emt 0:00:36]} Nh5 {[%emt 0:00:25]} 24. Bh2 {[%emt 0:00:13]} Nc5 {[%emt 0:00:02]} 25. Nd5 {[%emt 0:00:07]} Bxd5 {[%emt 0:00:19]} 26. Rxd5 {[%emt 0:00:01]} Ne4 {[%emt 0:00:28]} 27. g4 {[%emt 0:00:13]} Nhf6 {[%emt 0:00:01]} 28. Rxe5 {[%emt 0:00:02]} Rd8 {[%emt 0:00:06]} 29. Rea5 {[%emt 0:00:02]} Rcd7 {[%emt 0:00:02]} 30. Rxa6 {[%emt 0:00:04]} Rd1+ {[%emt 0:00:02]} 31. Rxd1 {[%emt 0:00:01]} Rxd1+ 32. Kg2 Rb1 {[%emt 0:00:03]} 33. Be5 {[%emt 0:00:07]} h5 {[%emt 0:00:02]} 34. Ra8+ {[%emt 0:00:04]} Kh7 {[%emt 0:00:01]} 35. Bxf6 {[%emt 0:00:01]} Bxf6 {[%emt 0:00:03]} 36. Bd3 {[%emt 0:00:01]} Rxb3 {[%emt 0:00:04]} 37. Bxe4+ {[%emt 0:00:01]} Kg7 {[%emt 0:00:00]} 38. gxh5 {[%emt 0:00:02]} Rb5 {[%emt 0:00:03]} 39. Nd4 {[%emt 0:00:03]} Bxd4 {[%emt 0:00:03]} 40. exd4 {[%emt 0:00:01]} f5 {[%emt 0:00:02]} 41. Bd3 {[%emt 0:00:03]} Rd5 {[%emt 0:00:02]} 42. Ra4 {[%emt 0:00:03]} Kh6 {[%emt 0:00:01]} 43. Be2 {[%emt 0:00:01]} Rd6 {[%emt 0:00:03]} 44. Bf3 {[%emt 0:00:01]} Kg7 {[%emt 0:00:02]} 45. d5 {[%emt 0:00:01]} Kf6 {[%emt 0:00:01]} 46. Rc4 {[%emt 0:00:02]} Ke5 {[%emt 0:00:01]} 47. Rc6 {[%emt 0:00:01]} Rd8 {[%emt 0:00:01]} 48. Re6+ {[%emt 0:00:01]} Kf4 {[%emt 0:00:01]} 49. h6 {[%emt 0:00:04]} Rd7 {[%emt 0:00:04]} 50. d6 {[%emt 0:00:03]} Rh7 {[%emt 0:00:01]} 51. Bc6 {[%emt 0:00:05]} 1-0

[Event "RUS-ch Blitz Women 2018"]
[Site "Sochi"]
[Date "2018.10.07"]
[Round "17"]
[White "Charochkina, Daria"]
[Black "Potapova, Margarita"]
[Result "1-0"]
[ECO "E36"]
[WhiteElo "2344"]
[BlackElo "2284"]
[Annotator "NA"]
[PlyCount "85"]
[EventDate "2018.10.07"]
[EventType "swiss"]
[EventCountry "RUS"]
[SourceTitle "playchess.com"]
[Source "ChessBase"]
[SourceQuality "1"]
[TimeControl "180+2"]

1. d4 {[%emt 0:00:00]} Nf6 {[%emt 0:00:00]} 2. c4 {[%emt 0:00:00]} e6 {[%emt 0:00:00]} 3. Nc3 {[%emt 0:00:00]} Bb4 {[%emt 0:00:00]} 4. Qc2 {[%emt 0:00:00]} d5 {[%emt 0:00:08]} 5. a3 {[%emt 0:00:01]} Bxc3+ {[%emt 0:00:04]} 6. Qxc3 {[%emt 0:00:01]} dxc4 {[%emt 0:00:07]} 7. Qxc4 {[%emt 0:00:03]} b6 {[%emt 0:00:04]} 8. Bg5 {[%emt 0:00:11]} Ba6 {[%emt 0:00:08]} 9. Qa4+ {[%emt 0:00:16]} Qd7 {[%emt 0:00:01]} 10. Qd1 {[%emt 0:00:05]} Ne4 {[%emt 0:00:05]} 11. Bf4 {[%emt 0:00:14]} O-O {[%emt 0:00:09]} 12. f3 {[%emt 0:00:10]} Nd6 {[%emt 0:00:02]} 13. Nh3 {[%emt 0:00:13]} Nf5 {[%emt 0:00:09]} 14. e3 {[%emt 0:00:07]} Bxf1 {[%emt 0:00:02]} 15. Rxf1 {[%emt 0:00:03]} Qb5 {[%emt 0:00:39]} 16. Qc2 {[%emt 0:00:16]} Na6 {[%emt 0:00:10]} 17. Kf2 {[%emt 0:00:10]} c5 {[%emt 0:00:01]} 18. d5 {[%emt 0:00:03]} c4 {[%emt 0:00:12]} 19. Rfd1 {[%emt 0:00:39]} Nc5 {[%emt 0:00:03]} 20. Kg1 {[%emt 0:00:05]} Nd3 {[%emt 0:00:08]} 21. dxe6 {[%emt 0:00:07]} fxe6 {[%emt 0:00:26]} 22. Rd2 {[%emt 0:00:20]} e5 {[%emt 0:00:08]} 23. Bg3 {[%emt 0:00:25]} Nxe3 {[%emt 0:00:02]} 24. Qc3 {[%emt 0:00:02]} Nd5 {[%emt 0:00:06]} 25. Qc2 {[%emt 0:00:01]} Qc5+ {[%emt 0:00:02]} 26. Kh1 {[%emt 0:00:01]} N5f4 {[%emt 0:00:08]} 27. Ng5 {[%emt 0:00:03]} Qd4 {[%emt 0:00:12]} 28. Bxf4 {[%emt 0:00:06]} Qxf4 {[%emt 0:00:20]} 29. Ne6 {[%emt 0:00:01]} Qh4 {[%emt 0:00:01]} 30. Nxf8 {[%emt 0:00:01]} Rxf8 {[%emt 0:00:01]} 31. Re2 {[%emt 0:00:07]} Rf6 {[%emt 0:00:00]} 32. Kg1 {[%emt 0:00:04]} Rh6 {[%emt 0:00:02]} 33. h3 {[%emt 0:00:00]} b5 {[%emt 0:00:05]} 34. a4 {[%emt 0:00:04]} Qg3 {[%emt 0:00:02]} 35. axb5 {[%emt 0:00:03]} Rh4 {[%emt 0:00:14]} 36. b6 {[%emt 0:00:01]} axb6 {[%emt 0:00:03]} 37. Ra8+ {[%emt 0:00:01]} Kf7 {[%emt 0:00:00]} 38. Qa4 {[%emt 0:00:01]} Nc5 {[%emt 0:00:05]} 39. Qe8+ {[%emt 0:00:03]} Kf6 {[%emt 0:00:02]} 40. Qf8+ {[%emt 0:00:03]} Kg6 {[%emt 0:00:01]} 41. Qd6+ {[%emt 0:00:07]} Kf5 {[%emt 0:00:05]} 42. Rf8+ {[%emt 0:00:01]} Kg5 {[%emt 0:00:01]} 43. Rxe5+ {[%emt 0:00:01]} 1-0